lending/lending_fUSD_20240410
["ID","MTS","AMOUNT","RATE_DAILY","PERIOD"]
[322083180,1712753446854,-2602.19700571,0.00033003,2]
[322083183,1712753446864,-3156.18039152,0.00033003,2]
[322083186,1712753446874,-5800.1678908,0.00033003,2]
[322083188,1712753446884,-7200.0,0.00033003,2]
[322083191,1712753446895,-8972.54590789,0.00033003,2]
[322083194,1712753446905,-1274.16935458,0.00033003,2]
[322083197,1712753446914,-4803.76896925,0.00033003,2]
[322083200,1712753446925,-22049.62137022,0.00033003,2]
[322083203,1712753446935,-1867.93141075,0.00033003,2]
[322083206,1712753446946,-5428.70331573,0.00033003,2]
[322083209,1712753446956,-9046.54318304,0.00033003,2]
[322083212,1712753446966,-1786.72600734,0.00033003,2]
[322083215,1712753446977,-7036.00971308,0.00033003,2]
[322083218,1712753446987,-499.999999,0.00033003,2]
[322083222,1712753446997,-6000.0,0.00033003,2]
[322083225,1712753447007,-2500.0,0.00033003,2]
[322083227,1712753447017,-2315.65637994,0.00033003,2]
[322083231,1712753447028,-7346.73655462,0.00033003,2]
[322083234,1712753447037,-1599.32931471,0.00033003,2]
[322083236,1712753447048,-9272.70232254,0.00033003,2]
[322083239,1712753447058,-1766.28071606,0.00033003,2]
[322083244,1712753447069,-4898.12585104,0.00033003,2]
[322083246,1712753447082,-9497.80884585,0.00033003,2]
[322083248,1712753447091,-9255.05833841,0.00033003,2]
[322083250,1712753447101,-4935.37630938,0.00033003,2]
[322083252,1712753447111,-1787.53850017,0.00033003,2]
[322083255,1712753447120,-5036.64881881,0.00033003,2]
[322083258,1712753447130,-1851.38381363,0.00033003,2]
[322083260,1712753447141,-262.163,0.00033003,2]
[322083264,1712753447152,-361.22,0.00033165,2]
[322083268,1712753447163,-561.16,0.00033165,2]
[322083271,1712753447174,-150.0,0.00033286,2]
[322083273,1712753447184,-635.0,0.00033326,2]
[322083275,1712753447194,-402.0,0.00033326,2]
[322083276,1712753447204,-209.48,0.00033461,2]
[322083277,1712753447214,-635.0,0.00033666,2]
[322083278,1712753447224,-402.0,0.00033666,2]
[322083279,1712753447234,-150.0,0.00033742,2]
[322083281,1712753447244,-161.18289218,0.00033964,7]
[322083283,1712753447253,-635.0,0.00034006,2]
[322083285,1712753447263,-355.23889679,0.00034006,2]
[322083287,1712753447273,-1987.47842092,0.00034006,2]
[322083289,1712753447282,-402.0,0.00034006,2]
[322083291,1712753447292,-717.15744031,0.00034006,2]
[322083293,1712753447306,-460.0,0.00034083,2]
[322083295,1712753447315,-2288.0,0.00034083,2]
[322083297,1712753447325,-1389.0,0.00034083,2]
[322083299,1712753447338,-966.0,0.00034083,2]
[322083301,1712753447348,-1228.0,0.00034083,2]
[322083303,1712753447359,-1260.0,0.00034083,2]
[322083305,1712753447370,-540.0,0.00034083,2]
[322083307,1712753447380,-607.0,0.00034083,2]
[322083309,1712753447390,-1945.0,0.00034083,2]
[322083311,1712753447400,-280.0,0.00034083,2]
[322083313,1712753447409,-435.0,0.00034083,2]
[322083315,1712753447419,-806.0,0.00034083,2]
[322083317,1712753447428,-1470.0,0.00034083,2]
[322083319,1712753447438,-1140.0,0.00034083,2]
[322083321,1712753447448,-3039.0,0.00034083,2]
[322083323,1712753447458,-398.0,0.00034083,2]
[322083325,1712753447467,-1635.0,0.00034083,2]
[322083327,1712753447478,-2437.0,0.00034083,2]
[322083329,1712753447490,-150.0,0.00034083,2]
[322083331,1712753447500,-442.0,0.00034083,2]
[322083333,1712753447509,-354.0,0.00034083,2]
[322083335,1712753447519,-214.0,0.00034083,2]
[322083337,1712753447529,-5681.0,0.00034083,2]
[322083339,1712753447538,-1313.0,0.00034083,2]
[322083341,1712753447548,-37570.0,0.00034083,2]
[322083343,1712753447558,-4772.0,0.00034083,2]
[322083345,1712753447567,-2449.0,0.00034083,2]
[322083347,1712753447580,-753.298,0.00034083,2]
[322083349,1712753447589,-1402.45989186,0.00034122,6]
[322083351,1712753447598,-500.0,0.000342,2]
[322083353,1712753447608,-150.0,0.00034286,2]
[322083355,1712753447618,-635.0,0.00034346,2]
[322083357,1712753447627,-402.0,0.00034346,2]
[322083359,1712753447637,-161.80937703,0.00034598,7]
[322083361,1712753447647,-150.0,0.00034607,2]
[322083363,1712753447657,-635.0,0.00034686,2]
[322083365,1712753447667,-402.0,0.00034686,2]
[322083367,1712753447677,-375.42393,0.000347,2]
[322083369,1712753447687,-158.58774655,0.00034758,7]
[322083371,1712753447697,-10912.894761,0.00034847,2]
[322083373,1712753447707,-870.16382291,0.0003489,10]
[322083375,1712753447716,-378.7,0.00035,2]
[322083377,1712753447726,-600.0,0.00035,3]
[322083379,1712753447735,-635.0,0.00035026,2]
[322083381,1712753447745,-402.0,0.00035026,2]
[322083383,1712753447755,-312.28,0.000351,2]
[322083385,1712753447765,-10912.894761,0.00035282,2]
[322083387,1712753447774,-163.45,0.00035288,15]
[322083389,1712753447784,-153.99568917,0.00035375,7]
[322083391,1712753447794,-4569.42437234,0.00035399,2]
[322083393,1712753447804,-7516.68443692,0.00035399,2]
[322083395,1712753447814,-5702.3846837,0.00035399,2]
[322083397,1712753447823,-3000.0,0.000354,4]
[322083399,1712753447839,-161.18289218,0.00035401,7]
[322083401,1712753447848,-3000.0,0.0003541,4]
[322083403,1712753447861,-3000.0,0.0003542,4]
[322083404,1712753447870,-5190.878652,0.0003543,4]
[322083406,1712753447880,-627.12501668,0.00035437,7]
[322083408,1712753447889,-150.0,0.00035472,2]
[322083410,1712753447899,-1500.0,0.000356,2]
[322083412,1712753447908,-10912.894761,0.00035718,2]
[322083414,1712753447918,-209.48,0.00035725,2]
[322083416,1712753447929,-3725.52635669,0.00035819,4]
[322083418,1712753447942,-1000.0,0.000359,7]
[322083420,1712753447952,-156.92392735,0.00036045,7]
[322083422,1712753447962,-10912.894761,0.00036153,2]
[322083424,1712753447973,-150.0,0.00036337,2]
[322083426,1712753447984,-3541.86128273,0.00036342,2]
[322083428,1712753447994,-13837.02003813,0.00036342,2]
[322083430,1712753448004,-203.310046,0.00036367,2]
[322083432,1712753448014,-154.781342,0.00036367,2]
[322083435,1712753448023,-161.18289218,0.00036407,7]
[322083437,1712753448033,-10912.894761,0.00036589,2]
[322083438,1712753448042,-150.20449643,0.00036591,7]
[322083440,1712753448051,-158.22335407,0.00036653,7]
[322083442,1712753448060,-154.781342,0.00036822,2]
[322083444,1712753448069,-1402.45989186,0.00036986,10]
[322083446,1712753448082,-650.0,0.00037,3]
[322083448,1712753448091,-460.0,0.00037083,2]
[322083450,1712753448100,-2280.0,0.00037083,2]
[322083452,1712753448109,-1389.0,0.00037083,2]
[322083453,1712753448119,-966.0,0.00037083,2]
[322083455,1712753448128,-986.548,0.00037083,2]
[322083457,1712753448136,-1260.0,0.00037083,2]
[322083459,1712753448145,-540.0,0.00037083,2]
[322083460,1712753448154,-607.0,0.00037083,2]
[322083462,1712753448163,-1945.0,0.00037083,2]
[322083463,1712753448173,-278.0,0.00037083,2]
[322083464,1712753448182,-806.0,0.00037083,2]
[322083466,1712753448191,-435.0,0.00037083,2]
[322083468,1712753448201,-1466.0,0.00037083,2]
[322083469,1712753448210,-1139.0,0.00037083,2]
[322083470,1712753448219,-3028.0,0.00037083,2]
[322083471,1712753448228,-397.0,0.00037083,2]
[322083472,1712753448237,-1635.0,0.00037083,2]
[322083473,1712753448248,-2437.0,0.00037083,2]
[322083474,1712753448257,-442.0,0.00037083,2]
[322083475,1712753448266,-152.0,0.00037083,2]
[322083476,1712753448275,-1181.91,0.00037083,2]
[322083477,1712753448284,-5672.707,0.00037083,2]
[322083478,1712753448293,-375.42393,0.000372,2]
[322083479,1712753448303,-150.0,0.00037203,2]
[322083480,1712753448500,-154.781342,0.00037276,2]
[322083481,1712753448511,-378.7,0.000373,2]
[322083482,1712753448521,-312.28,0.000373,2]
[322083483,1712753448531,-154.781342,0.00037731,2]
[322083484,1712753448540,-209.48,0.00037988,2]
[322083485,1712753448549,-163.45,0.00038027,15]
[322083486,1712753448558,-150.0,0.00038068,2]
[322083487,1712753448568,-203.310046,0.00038186,2]
[322083488,1712753448582,-154.781342,0.00038186,2]
[322083489,1712753448592,-351.0,0.000382,2]
[322083490,1712753448601,-1000.0,0.000382,2]
[322083491,1712753448611,-222.0,0.000382,2]
[322083492,1712753448620,-504.7,0.000382,2]
[322083493,1712753448630,-151.71124129,0.00038254,7]
[322083494,1712753448639,-1500.0,0.000384,2]
[322083495,1712753448648,-154.98939765,0.00038557,7]
[322083496,1712753448657,-161.18289218,0.00038581,7]
[322083497,1712753448669,-153.7660665,0.00038848,7]
[322083498,1712753448678,-4070.38027107,0.000389,15]
[322083499,1712753448687,-361.22,0.00038933,2]
[322083500,1712753448698,-561.16,0.00038933,2]
[322083501,1712753448707,-150.0,0.00038933,2]
[322083502,1712753448717,-151.71124129,0.00038982,7]
[322083503,1712753448726,-700.0,0.00039,3]
[322083504,1712753448736,-627.12501668,0.00039053,9]
[322083505,1712753448746,-154.75574901,0.00039433,4]
[322083506,1712753448755,-375.42393,0.000397,2]
[322083507,1712753448765,-150.0,0.00039798,2]
[322083508,1712753448774,-1402.45989186,0.0003985,13]
[322083509,1712753448784,-169.45,0.00039944,2]
[322083510,1712753448794,-100000.0,0.0004,40]
[322083511,1712753448803,-500.0,0.0004,120]
[322083512,1712753448812,-210.37183016,0.0004,120]
[322083513,1712753448822,-22119.63160453,0.0004,4]
[322083514,1712753448836,-2850.45909534,0.0004,5]
[322083515,1712753448845,-192.98174276,0.0004,2]
[322083516,1712753448856,-1573.4442293,0.0004,60]
[322083517,1712753448866,-216.74647979,0.0004,30]
[322083518,1712753448876,-213.83584762,0.0004,30]
[322083519,1712753448886,-1398.6234022,0.0004,30]
[322083520,1712753448896,-250.0,0.0004,2]
[322083521,1712753448906,-1256.0,0.00040083,2]
[322083522,1712753448915,-540.0,0.00040083,2]
[322083523,1712753448925,-1264.0,0.00040083,2]
[322083524,1712753448935,-748.086,0.00040083,2]
[322083525,1712753448944,-430.0,0.00040083,2]
[322083526,1712753448953,-1635.0,0.00040083,2]
[322083527,1712753448963,-2437.0,0.00040083,2]
[322083528,1712753448973,-442.0,0.00040083,2]
[322083529,1712753448982,-154.4957932,0.00040165,30]
[322083530,1712753448991,-378.7,0.000402,7]
[322083531,1712753449001,-312.28,0.000402,7]
[322083532,1712753449010,-209.48,0.00040252,2]
[322083533,1712753449020,-3541.86128273,0.00040253,2]
[322083534,1712753449030,-13837.02003813,0.00040253,2]
[322083535,1712753449039,-161.18289218,0.00040292,30]
[322083536,1712753449049,-150.0,0.00040663,2]
[322083537,1712753449059,-163.45,0.00040767,15]
[322083538,1712753449068,-100000.0,0.00041,41]
[322083539,1712753449079,-750.0,0.00041,3]
[322083540,1712753449089,-156.14906209,0.00041042,30]
[322083541,1712753449098,-1000.0,0.00041095,2]
[322083542,1712753449108,-157.0,0.00041096,2]
[322083543,1712753449117,-3613.52155192,0.000411,2]
[322083544,1712753449127,-156.92392735,0.0004112,30]
[322083545,1712753449136,-150.0,0.00041528,2]
[322083546,1712753449146,-156.01719987,0.00041692,30]
[322083547,1712753449155,-100000.0,0.00042,42]
[322083548,1712753449164,-375.42393,0.000422,12]
[322083549,1712753449174,-599.73265293,0.0004235,2]
[322083550,1712753449183,-13066.2730773,0.0004235,2]
[322083551,1712753449192,-150.0,0.00042394,2]
[322083552,1712753449202,-1000.0,0.00042465,2]
[322083553,1712753449211,-209.48,0.00042516,2]
[322083554,1712753449220,-627.12501668,0.00042669,10]
[322083555,1712753449230,-1402.45989186,0.00042714,17]
[322083556,1712753449240,-378.7,0.000429,7]
[322083557,1712753449253,-312.28,0.000429,7]
[322083558,1712753449262,-100000.0,0.00043,43]
[322083559,1712753449273,-532.905,0.00043083,2]
[322083560,1712753449284,-224.746,0.00043083,2]
[322083561,1712753449294,-442.0,0.00043083,2]
[322083562,1712753449303,-161.18289219,0.00043165,30]
[322083563,1712753449312,-156.01719987,0.00043237,30]
[322083564,1712753449321,-150.0,0.00043259,2]
[322083565,1712753449334,-163.45,0.00043507,15]
[322083566,1712753449343,-1000.0,0.00043835,2]
[322083567,1712753449353,-2746.55,0.00043836,2]
[322083568,1712753449362,-6697.01,0.00043836,2]
[322083569,1712753449371,-500.0,0.00043836,14]
[322083570,1712753449381,-100000.0,0.00044,44]
[322083571,1712753449390,-1722.803197,0.00044,44]
[322083572,1712753449399,-150.0,0.00044124,2]
[322083573,1712753449409,-3541.86128273,0.00044165,2]
[322083574,1712753449418,-13837.02003813,0.00044165,2]
[322083575,1712753449428,-151.71124129,0.00044176,30]
[322083576,1712753449441,-150.95912378,0.00044607,30]
[322083577,1712753449450,-361.22,0.00044701,2]
[322083578,1712753449460,-561.16,0.00044701,2]
[322083579,1712753449470,-209.48,0.0004478,2]
[322083580,1712753449480,-414.9945935,0.00044986,4]
[322083581,1712753449653,-4585.0054065,0.00044986,4]
[322083582,1712753449664,-150.0,0.00044989,2]
[322083583,1712753449673,-100000.0,0.00045,45]
[322083584,1712753449683,-410.8899851,0.00045,4]
[322083585,1712753449692,-1704.41238598,0.00045,30]
[322083586,1712753449701,-1000.0,0.000451,7]
[322083587,1712753449711,-1000.0,0.00045205,2]
[322083588,1712753449720,-1402.45989186,0.00045579,20]
[322083589,1712753449730,-157.19,0.00045662,2]
[322083590,1712753449740,-150.0,0.00045854,2]
[322083591,1712753449749,-378.7,0.000459,7]
[322083592,1712753449758,-153.7660665,0.00045911,30]
[322083593,1712753449768,-100000.0,0.00046,46]
[322083594,1712753449777,-2172.02980468,0.00046,2]
[322083595,1712753449788,-312.28,0.00046,7]
[322083596,1712753449797,-163.45,0.00046247,15]
[322083597,1712753449807,-627.12501668,0.00046284,12]
[322083598,1712753449817,-151.71124129,0.0004631,30]
[322083599,1712753449829,-1000.0,0.00046575,2]
[322083600,1712753449843,-151.71124129,0.00046675,30]
[322083601,1712753449853,-2701.0,0.000467,115]
[322083602,1712753449863,-150.0,0.0004672,2]
[322083603,1712753449872,-554.315949,0.00046781,7]
[322083604,1712753449882,-150.20449643,0.0004686,30]
[322083605,1712753449891,-100000.0,0.00047,47]
[322083606,1712753449901,-17454.10456196,0.00047,30]
[322083607,1712753449911,-209.48,0.00047044,2]
[322083608,1712753449920,-153.88972214,0.0004718,30]
[322083609,1712753449929,-150.0,0.00047585,2]
[322083610,1712753449939,-151.0,0.00047619,2]
[322083611,1712753449949,-1299.61,0.000478,2]
[322083612,1712753449958,-1299.61,0.000478,2]
[322083613,1712753449967,-1299.61,0.000478,2]
[322083614,1712753449977,-1000.0,0.00047945,2]
[322083615,1712753449986,-100000.0,0.00048,48]
[322083616,1712753449995,-393.080236,0.00048,25]
[322083617,1712753450005,-1977.22291875,0.00048,120]
[322083618,1712753450015,-3541.86128273,0.00048077,2]
[322083619,1712753450024,-13837.02003813,0.00048077,2]
[322083620,1712753450034,-312.28,0.000483,7]
[322083621,1712753450043,-169.0,0.00048372,28]
[322083622,1712753450053,-302.0,0.00048419,4]
[322083623,1712753450063,-1402.45989186,0.00048443,24]
[322083624,1712753450072,-150.0,0.0004845,2]
[322083625,1712753450084,-378.7,0.000486,7]
[322083626,1712753450093,-725.0,0.000487,26]
[322083627,1712753450103,-4500.0,0.000488,120]
[322083628,1712753450112,-10101.96152353,0.0004883,60]
[322083629,1712753450122,-150.0,0.00048853,7]
[322083630,1712753450131,-156.01719987,0.00048866,30]
[322083631,1712753450142,-163.45,0.00048986,15]
[322083632,1712753450151,-100000.0,0.00049,49]
[322083633,1712753450162,-819.68110093,0.00049,30]
[322083634,1712753450173,-291.49277,0.00049,9]
[322083635,1712753450183,-150.0,0.00049215,7]
[322083636,1712753450192,-151.7112413,0.00049216,30]
[322083637,1712753450202,-150.0,0.00049302,7]
[322083638,1712753450212,-209.48,0.00049308,2]
[322083639,1712753450222,-1252.97,0.00049315,120]
[322083640,1712753450231,-1000.0,0.00049315,60]
[322083641,1712753450241,-500.0,0.00049315,16]
[322083642,1712753450250,-150.0,0.00049315,2]
[322083643,1712753450259,-271.53872893,0.00049388,30]
[322083644,1712753450269,-169.0,0.00049402,28]
[322083645,1712753450279,-150.0,0.000495,10]
[322083646,1712753450288,-500.0,0.0004952,90]
[322083647,1712753450298,-150.0,0.00049718,7]
[322083648,1712753450307,-150.0,0.00049723,7]
[322083649,1712753450316,-150.0,0.00049759,7]
[322083650,1712753450325,-2972.2,0.00049829,117]
[322083651,1712753450338,-156.01719987,0.00049868,30]
[322083652,1712753450347,-627.12501668,0.000499,14]
[322083653,1712753450356,-28217.74507766,0.00049984,120]
[322083654,1712753450366,-100000.0,0.0005,50]
[322083655,1712753450375,-6220.79277173,0.0005,120]
[322083656,1712753450384,-17807.2803153,0.0005,61]
[322083657,1712753450394,-430.59566755,0.0005,28]
[322083658,1712753450404,-29431.19041948,0.0005,30]
[322083659,1712753450413,-155.95736384,0.0005,2]
[322083660,1712753450422,-1035.35462315,0.0005,120]
[322083661,1712753450432,-224.49,0.0005,120]
[322083662,1712753450441,-679.6653879,0.0005,30]
[322083663,1712753450451,-2289.8676829,0.0005,15]
[322083664,1712753450460,-16759.31385104,0.0005,15]
[322083665,1712753450471,-8261.6764705,0.0005,4]
[322083666,1712753450480,-1153.25008438,0.0005,90]
[322083667,1712753450490,-4193.71381489,0.0005,4]
[322083668,1712753450499,-213.07433655,0.0005,7]
[322083669,1712753450508,-206.5457095,0.0005,4]
[322083670,1712753450518,-3158.55264147,0.0005,120]
[322083671,1712753450527,-161.00915475,0.0005,4]
[322083672,1712753450537,-256.43067011,0.0005,120]
[322083673,1712753450546,-13000.7914503,0.0005,5]
[322083674,1712753450556,-543.85545361,0.0005,120]
[322083675,1712753450566,-1259.42140806,0.0005,2]
[322083676,1712753450576,-164.7776124,0.0005,2]
[322083677,1712753450587,-879.67,0.0005,120]
[322083678,1712753450596,-8000.0,0.0005,60]
[322083679,1712753450605,-2500.0,0.0005,120]
[322083680,1712753450614,-2500.0,0.0005,120]
[322083681,1712753450623,-2500.0,0.0005,120]
[322083682,1712753450633,-2500.0,0.0005,120]
[322083683,1712753450642,-2500.0,0.0005,120]
[322083684,1712753450651,-2500.0,0.0005,120]
[322083685,1712753450662,-2500.0,0.0005,120]
[322083686,1712753450671,-2500.0,0.0005,120]
[322083687,1712753450681,-1867.49,0.0005,120]
[322083688,1712753450691,-4985.13073813,0.0005,2]
[322083689,1712753450700,-7227.0,0.0005,12]
[322083690,1712753450710,-150.08,0.0005,27]
[322083691,1712753450719,-250.0,0.0005,3]
[322083692,1712753450729,-2759.467,0.0005,120]
[322083693,1712753450739,-2759.467,0.0005,120]
[322083694,1712753450748,-2759.468,0.0005,120]
[322083695,1712753450757,-2759.467,0.0005,120]
[322083696,1712753450766,-2759.467,0.0005,120]
[322083697,1712753450776,-432840.0,0.0005,30]
[322083698,1712753450785,-200.0,0.0005,27]
[322083699,1712753450795,-150.0,0.0005,10]
[322083700,1712753450804,-600.0,0.00050068,90]
[322083701,1712753450814,-169.0,0.00050431,28]
[322083702,1712753450824,-361.22,0.00050469,2]
[322083703,1712753450840,-561.16,0.00050469,2]
[322083704,1712753450850,-1045.08139393,0.00050684,60]
[322083705,1712753450862,-168.9723334,0.00050965,2]
[322083706,1712753450872,-100000.0,0.00051,51]
[322083707,1712753450882,-150.0,0.00051,15]
[322083708,1712753450892,-1402.45989186,0.00051307,28]
[322083709,1712753450901,-169.0,0.0005146,28]
[322083710,1712753450911,-209.48,0.00051572,2]
[322083711,1712753450921,-163.45,0.00051726,120]
[322083712,1712753450930,-7669.3483485,0.00051964,2]
[322083713,1712753450940,-2384.0952271,0.00051964,2]
[322083714,1712753450950,-115858.7097659,0.00051964,2]
[322083715,1712753450959,-1539.6008222,0.00051964,2]
[322083716,1712753450969,-177.0,0.0005197,15]
[322083717,1712753450979,-327.0,0.0005197,15]
[322083718,1712753450990,-814.0,0.0005197,15]
[322083719,1712753450999,-177.0,0.0005198,15]
[322083720,1712753451009,-327.0,0.0005198,15]
[322083721,1712753451018,-814.0,0.0005198,15]
[322083722,1712753451028,-3541.86128273,0.00051988,2]
[322083723,1712753451037,-13837.02003813,0.00051988,2]
[322083724,1712753451047,-177.0,0.0005199,15]
[322083725,1712753451057,-327.0,0.0005199,15]
[322083726,1712753451066,-814.0,0.0005199,15]
[322083727,1712753451075,-100000.0,0.00052,52]
[322083728,1712753451087,-7415.40833839,0.00052,30]
[322083729,1712753451096,-12000.0,0.00052,7]
[322083730,1712753451105,-378.7,0.00052,7]
[322083731,1712753451115,-312.28,0.00052,7]
[322083732,1712753451124,-1000.0,0.000521,7]
[322083733,1712753451134,-4895.0,0.00052327,120]
[322083734,1712753451143,-6111.98355461,0.000524,120]
[322083735,1712753451153,-169.0,0.00052489,28]
[322083736,1712753451162,-7871.82417984,0.00052799,2]
[322083737,1712753451172,-7871.82417984,0.00052801,2]
[322083738,1712753451181,-1528.85154171,0.00052805,2]
[322083739,1712753451191,-463.61921355,0.00052806,2]
[322083740,1712753451201,-522.40013642,0.00052808,2]
[322083741,1712753451210,-463.61921355,0.00052819,2]
[322083742,1712753451221,-522.40013642,0.00052822,2]
[322083743,1712753451231,-4460.8861372,0.00052823,2]
[322083744,1712753451241,-16794.08730858,0.00052826,2]
[322083745,1712753451251,-522.40013642,0.0005283,2]
[322083746,1712753451261,-1528.85154171,0.00052832,2]
[322083747,1712753451271,-16794.08730858,0.00052833,2]
[322083748,1712753451280,-4460.8861372,0.00052834,2]
[322083749,1712753451434,-1528.85154171,0.00052834,2]
[322083750,1712753451444,-522.40013642,0.00052835,2]
[322083751,1712753451454,-1528.85154171,0.00052839,2]
[322083752,1712753451464,-4460.8861372,0.00052841,2]
[322083753,1712753451474,-463.61921355,0.00052843,2]
[322083754,1712753451483,-1528.85154171,0.00052848,2]
[322083755,1712753451493,-1528.85154171,0.00052858,2]
[322083756,1712753451502,-16794.08730858,0.00052859,2]
[322083757,1712753451512,-3237.22405842,0.0005286,2]
[322083758,1712753451521,-522.40013642,0.00052863,2]
[322083759,1712753451530,-463.61921355,0.00052865,2]
[322083760,1712753451539,-1528.85154171,0.00052867,2]
[322083761,1712753451548,-7871.82417984,0.00052868,2]
[322083762,1712753451558,-463.61921355,0.00052869,2]
[322083763,1712753451567,-3237.22405842,0.00052874,2]
[322083764,1712753451576,-463.61921355,0.00052877,2]
[322083765,1712753451587,-16794.08730858,0.00052877,2]
[322083766,1712753451596,-4460.8861372,0.00052879,2]
[322083767,1712753451606,-7871.82417984,0.0005288,2]
[322083768,1712753451632,-1528.85154171,0.00052881,2]
[322083769,1712753451642,-16794.08730858,0.00052881,2]
[322083770,1712753451652,-16794.08730858,0.00052881,2]
[322083771,1712753451661,-463.61921355,0.00052884,2]
[322083772,1712753451672,-463.61921355,0.00052891,2]
[322083773,1712753451682,-4460.8861372,0.00052892,2]
[322083774,1712753451692,-522.40013642,0.00052892,2]
[322083775,1712753451702,-7871.82417984,0.00052893,2]
[322083776,1712753451712,-4460.8861372,0.00052895,2]
[322083777,1712753451721,-4460.8861372,0.00052902,2]
[322083778,1712753451731,-7871.82417984,0.00052905,2]
[322083779,1712753451740,-522.40013642,0.00052911,2]
[322083780,1712753451750,-16794.08730858,0.00052912,2]
[322083781,1712753451759,-3237.22405842,0.0005292,2]
[322083782,1712753451769,-522.40013642,0.00052922,2]
[322083783,1712753451778,-463.61921355,0.00052923,2]
[322083784,1712753451787,-3237.22405842,0.00052928,2]
[322083785,1712753451797,-3237.22405842,0.00052934,2]
[322083786,1712753451806,-7871.82417984,0.00052942,2]
[322083787,1712753451816,-3237.22405842,0.00052947,2]
[322083788,1712753451825,-6482.4,0.00052957,117]
[322083789,1712753451841,-7871.82417984,0.00052958,2]
[322083790,1712753451850,-3237.22405842,0.00052959,2]
[322083791,1712753451859,-154.75574901,0.00052967,55]
[322083792,1712753451868,-16794.08730858,0.00052967,2]
[322083793,1712753451877,-3237.22405842,0.00052973,2]
[322083794,1712753451888,-1528.85154171,0.00052977,2]
[322083795,1712753451897,-4460.8861372,0.00052979,2]
[322083796,1712753451907,-7871.82417984,0.00052986,2]
[322083797,1712753451916,-16794.08730858,0.00052991,2]
[322083798,1712753451927,-3237.22405842,0.00052994,2]
[322083799,1712753451937,-522.40013642,0.00052995,2]
[322083800,1712753451946,-30232.9700709,0.00053,53]
[322083801,1712753451960,-1297.0208772,0.00053,53]
[322083802,1712753451971,-259.76635627,0.00053,53]
[322083803,1712753451983,-68210.24269563,0.00053,53]
[322083804,1712753451992,-4460.8861372,0.00053,2]
[322083805,1712753452001,-1293.8441168,0.00053,120]
[322083806,1712753452011,-1380.0,0.00053,120]
[322083807,1712753452021,-14452.0,0.00053,120]
[322083808,1712753452031,-320.0,0.00053,100]
[322083809,1712753452040,-8000.0,0.0005312,120]
[322083810,1712753452050,-8000.0,0.00053127,120]
[322083811,1712753452060,-10498.0,0.000534,120]
[322083812,1712753452069,-500.0,0.00053424,30]
[322083813,1712753452082,-12000.0,0.0005348,20]
[322083814,1712753452093,-320.0,0.000535,101]
[322083815,1712753452102,-169.0,0.00053518,28]
[322083816,1712753452112,-299.999999,0.000537,30]
[322083817,1712753452121,-388.30618251,0.0005375,30]
[322083818,1712753452130,-209.48,0.00053836,2]
[322083819,1712753452139,-909.99,0.000539,30]
[322083820,1712753452149,-13034.83503083,0.000539,120]
[322083821,1712753452158,-484.96560156,0.00053972,35]
[322083822,1712753452167,-100000.0,0.00054,54]
[322083823,1712753452176,-500.0,0.00054,7]
[322083824,1712753452185,-500.0,0.00054,7]
[322083825,1712753452194,-500.0,0.00054,7]
[322083826,1712753452204,-500.0,0.00054,7]
[322083827,1712753452213,-500.0,0.00054,7]
[322083828,1712753452222,-500.0,0.00054,7]
[322083829,1712753452231,-500.0,0.00054,7]
[322083830,1712753452240,-500.0,0.00054,7]
[322083831,1712753452249,-500.0,0.00054,7]
[322083832,1712753452258,-500.0,0.00054,7]
[322083833,1712753452267,-500.0,0.00054,7]